bitfinex/quotes_SOLUSD_20230701
["timestamp","ask_amount","ask_price","bid_price","bid_amount"]
[1688206154147,55.16,18.384,18.373,23.021]
[1688206154547,55.16,18.384,18.374,2.91566015]
[1688206154756,55.16,18.384,18.377,23.017]
[1688206155542,55.0,18.383,18.377,23.017]
[1688206156543,55.0,18.383,18.375,23.019]
[1688206156741,78.01,18.383,18.375,23.019]
[1688206157950,77.51,18.383,18.375,23.019]
[1688206158555,54.5,18.383,18.375,23.019]
[1688206158851,55.16,18.384,18.375,82.284]
[1688206161752,22.999,18.392,18.375,82.284]
[1688206161963,22.995,18.396,18.38,35.26]
[1688206162149,167.166,18.401,18.384,23.008]
[1688206162464,167.166,18.401,18.38,94.506]
[1688206162465,22.996,18.395,18.386,23.006]
[1688206163047,45.992,18.395,18.386,23.006]
[1688206163259,55.0,18.394,18.386,23.006]
[1688206163563,77.997,18.394,18.386,23.006]
[1688206165971,22.997,18.394,18.386,23.006]
[1688206166170,22.996,18.395,18.386,23.006]
[1688206166473,55.0,18.394,18.386,23.006]
[1688206166854,77.996,18.394,18.386,23.006]
[1688206167265,77.996,18.394,18.384,23.008]
[1688206172596,22.996,18.395,18.384,23.008]
[1688206172775,22.996,18.395,18.385,5.03468182]
[1688206173071,22.996,18.395,18.388,23.004]
[1688206175670,59.165,18.407,18.388,23.004]
[1688206175873,22.987,18.401,18.389,28.85679892]
[1688206176079,59.237,18.398,18.393,22.996]
[1688206178760,22.981,18.407,18.393,22.996]
[1688206179057,22.981,18.407,18.391,59.213]
[1688206179058,59.213,18.401,18.397,22.991]
[1688206183276,59.213,18.401,18.395,22.994]
[1688206187280,151.7049,18.412,18.395,22.994]
[1688206187604,22.978,18.409,18.396,8.04975898]
[1688206187797,22.978,18.409,18.399,22.989]
[1688206188285,90.222759,18.409,18.399,22.989]
[1688206188988,22.98,18.407,18.399,22.989]
[1688206189285,55.0,18.406,18.399,22.989]
[1688206190679,67.244759,18.409,18.399,22.989]
[1688206190885,67.244759,18.409,18.402,22.985]
[1688206191274,22.971,18.415,18.402,22.985]
[1688206191474,22.971,18.415,18.403,6.56476299]
[1688206191676,22.971,18.415,18.406,22.98]
[1688206192271,45.942,18.415,18.406,22.98]
[1688206192782,22.971,18.415,18.406,22.98]
[1688206193575,22.971,18.415,18.409,22.977]
[1688206195895,22.964,18.42,18.413,22.972]
[1688206196292,22.971,18.416,18.413,22.972]
[1688206197887,22.971,18.416,18.411,22.974]
[1688206208096,22.971,18.416,18.409,59.153]
[1688206208097,22.971,18.416,18.409,22.976]
[1688206208410,55.0,18.415,18.409,22.976]
[1688206210192,55.0,18.415,18.407,22.979]
[1688206210700,77.97,18.415,18.407,22.979]
[1688206219212,77.97,18.415,18.397,90.2995]
[1688206219418,77.97,18.415,18.402,22.986]
[1688206221314,77.97,18.415,18.403,3.35895678]
[1688206221506,77.97,18.415,18.404,22.983]
[1688206225021,22.971,18.416,18.405,4.95242937]
[1688206225201,22.971,18.416,18.408,22.978]
[1688206238129,22.971,18.416,18.409,55.0]
[1688206238320,22.971,18.416,18.411,22.975]
[1688206239027,22.961,18.422,18.411,22.975]
[1688206239327,22.961,18.422,18.414,22.97]
[1688206240326,53.7982,18.422,18.414,22.97]
[1688206240630,30.8372,18.422,18.414,22.97]
[1688206241227,53.7982,18.422,18.412,22.973]
[1688206241431,55.0,18.421,18.413,3.15936188]
[1688206241727,77.963,18.421,18.413,22.972]
[1688206242627,77.963,18.421,18.41,30.83719922]
[1688206242824,77.963,18.421,18.411,4.4796384]
[1688206243817,77.963,18.421,18.412,22.973]
[1688206244926,55.0,18.421,18.412,22.973]
[1688206248129,35.12,18.42,18.403,59.172]
[1688206248327,22.97,18.415,18.406,22.98]
[1688206248534,55.0,18.414,18.406,22.98]
[1688206248732,77.971,18.414,18.406,22.98]
[1688206249232,77.971,18.414,18.396,195.06096107]
[1688206249431,77.971,18.414,18.399,22.99]
[1688206249621,77.971,18.414,18.4,20.0]
[1688206249826,77.971,18.414,18.402,22.985]
[1688206250521,403.771,18.414,18.4,42.987]
[1688206250724,34.96,18.41,18.401,3.31580219]
[1688206250927,22.98,18.407,18.4,20.0]
[1688206251434,55.0,18.406,18.4,20.0]
[1688206251933,55.0,18.406,18.4,42.988]
[1688206252635,110.0,18.406,18.4,42.988]
[1688206255437,55.0,18.406,18.4,42.988]
[1688206256339,22.971,18.415,18.4,42.988]
[1688206256545,22.971,18.415,18.401,13.26544878]
[1688206256833,22.971,18.415,18.405,22.982]
[1688206257339,82.094,18.415,18.405,22.982]
[1688206257932,59.123,18.415,18.406,4.78294268]
[1688206258137,59.123,18.415,18.408,22.978]
[1688206258318,59.123,18.415,18.409,20.0]
[1688206258522,59.123,18.415,18.41,22.975]
[1688206259148,398.5,18.427,18.41,130.905]
[1688206259440,22.975,18.423,18.415,190.001]
[1688206259639,22.975,18.423,18.418,82.092]
[1688206259939,22.948,18.433,18.424,22.958]
[1688206260150,325.8,18.439,18.424,22.958]
[1688206260441,2.73746914,18.438,18.425,4.15517497]
[1688206260619,25.67846914,18.438,18.425,22.957]
[1688206261543,55.0,18.437,18.425,22.957]
[1688206261738,22.947,18.434,18.425,22.957]
[1688206261939,55.0,18.433,18.425,22.957]
[1688206262538,35.01,18.44,18.425,82.061]
[1688206262745,22.942,18.438,18.426,3.87785371]
[1688206262927,22.942,18.438,18.429,22.952]
[1688206263541,45.894,18.438,18.429,22.952]
[1688206264619,22.949,18.432,18.422,22.96]
[1688206264833,55.0,18.431,18.421,6.51025038]
[1688206265144,22.954,18.428,18.418,22.966]
[1688206265325,55.0,18.427,18.42,22.963]
[1688206267747,77.963,18.427,18.42,22.963]
[1688206271647,22.963,18.427,18.42,22.963]
[1688206272040,22.944,18.436,18.42,22.963]
[1688206272247,0.76612716,18.435,18.421,11.26533707]
[1688206272440,0.76612716,18.435,18.425,22.957]
[1688206272640,45.907,18.436,18.425,22.957]
[1688206273043,55.0,18.435,18.425,22.957]
[1688206273248,45.907,18.436,18.425,22.957]
[1688206274639,22.946,18.434,18.425,22.957]
[1688206274843,55.0,18.433,18.425,22.957]
[1688206280436,77.948,18.433,18.425,22.957]
[1688206282044,77.948,18.433,18.42,59.12]
[1688206282241,77.948,18.433,18.421,28.84817494]
[1688206282552,2.23746914,18.432,18.419,42.964]
[1688206282858,22.954,18.429,18.419,20.0]
[1688206283167,55.0,18.428,18.418,22.966]
[1688206283360,22.957,18.426,18.413,49.38704314]
[1688206283664,22.962,18.422,18.408,12.56049884]
[1688206284048,55.0,18.421,18.411,22.974]
[1688206284351,22.965,18.42,18.411,22.974]
[1688206284552,55.0,18.419,18.411,22.974]
[1688206287765,55.0,18.42,18.411,22.974]
[1688206290762,22.974,18.421,18.411,22.974]
[1688206292061,55.0,18.42,18.411,22.974]
[1688206294361,22.974,18.421,18.411,22.974]
[1688206294558,55.0,18.42,18.411,22.974]
[1688206295856,77.964,18.42,18.411,22.974]
[1688206296058,55.0,18.42,18.407,91.2071]
[1688206296362,77.964,18.42,18.411,22.974]
[1688206297159,77.964,18.42,18.408,20.0]
[1688206297369,20.0,18.419,18.398,59.188]
[1688206297559,22.972,18.414,18.405,22.982]
[1688206298061,55.0,18.413,18.405,22.982]
[1688206300175,55.0,18.414,18.405,22.982]
[1688206301257,77.971,18.414,18.405,22.982]
[1688206306875,22.969,18.416,18.405,22.982]
[1688206308158,55.0,18.415,18.405,22.982]
[1688206308361,77.97,18.415,18.405,22.982]
[1688206309686,77.97,18.415,18.401,92.6525]
[1688206309967,77.97,18.415,18.404,22.983]
[1688206310476,55.0,18.415,18.404,82.154]
[1688206310649,22.966,18.419,18.405,65.83719922]
[1688206310854,45.937,18.421,18.409,22.976]
[1688206311168,45.937,18.421,18.413,22.972]
[1688206311971,55.0,18.42,18.413,22.972]
[1688206314271,22.974,18.421,18.413,22.972]
[1688206316161,22.974,18.421,18.413,22.472]
[1688206327274,22.974,18.421,18.413,33.30919922]
[1688206327483,1.22946584,18.429,18.419,22.964]
[1688206327773,22.974,18.423,18.419,22.964]
[1688206331979,22.974,18.423,18.419,82.087]
[1688206332285,22.974,18.423,18.419,22.964]
[1688206339680,22.947,18.434,18.42,20.0]
[1688206339882,22.945,18.436,18.424,22.958]
[1688206340475,22.945,18.436,18.425,9.27451864]
[1688206340682,22.945,18.436,18.428,22.954]
[1688206340882,68.388518,18.436,18.428,22.954]
[1688206341769,95.71387255,18.436,18.428,22.954]
[1688206342669,95.71387255,18.436,18.426,22.955]
[1688206343374,22.945,18.435,18.426,22.955]
[1688206343574,55.0,18.434,18.426,22.955]
[1688206344593,95.71387255,18.436,18.426,22.955]
[1688206344781,55.0,18.435,18.426,22.955]
[1688206349489,55.0,18.435,18.42,20.0]
[1688206349790,22.954,18.428,18.42,42.963]
[1688206349996,55.0,18.427,18.42,42.963]
[1688206351493,57.842,18.43,18.42,42.963]
[1688206351687,55.0,18.429,18.42,42.963]
[1688206353394,77.953,18.429,18.42,42.963]
[1688206353793,55.0,18.429,18.42,42.963]
[1688206354695,1.59116287,18.428,18.414,11.0283209]
[1688206354895,77.953,18.429,18.415,20.0]
[1688206355098,55.0,18.429,18.42,82.083]
[1688206356683,55.0,18.429,18.42,22.963]
[1688206356885,77.953,18.429,18.42,22.963]
[1688206357092,55.0,18.429,18.42,22.963]
[1688206358087,22.954,18.428,18.42,22.963]
[1688206358282,55.0,18.427,18.42,22.963]
[1688206358486,55.0,18.429,18.42,22.963]
[1688206363001,55.0,18.428,18.42,22.963]
[1688206363201,55.0,18.43,18.42,22.963]
[1688206370491,77.952,18.43,18.42,22.963]
[1688206371401,55.0,18.43,18.42,22.963]
[1688206371793,77.952,18.43,18.42,22.963]
[1688206372095,55.0,18.43,18.42,22.963]
[1688206374090,55.0,18.429,18.42,22.963]
[1688206374290,77.95,18.431,18.42,22.963]
[1688206379292,35.12,18.43,18.42,22.963]
[1688206379500,22.955,18.427,18.42,22.963]
[1688206379708,55.0,18.426,18.418,22.965]
[1688206379912,77.956,18.426,18.418,22.965]
[1688206387525,55.0,18.426,18.418,22.965]
[1688206387900,77.957,18.426,18.418,22.965]
[1688206388214,77.957,18.426,18.414,22.97]
[1688206388410,77.957,18.426,18.416,22.968]
[1688206392204,77.957,18.426,18.414,22.97]
[1688206410839,22.957,18.426,18.414,22.97]
[1688206411037,55.0,18.425,18.415,2.94067893]
[1688206411231,59.142,18.427,18.417,22.966]
[1688206411433,82.098,18.427,18.42,35.12]
[1688206411627,82.098,18.427,18.42,58.083]
[1688206411628,59.142,18.427,18.42,58.083]
[1688206414727,59.142,18.427,18.42,35.12]
[1688206414929,82.097,18.427,18.42,35.12]
[1688206415227,59.142,18.427,18.42,58.084]
[1688206423657,96.2044,18.439,18.42,58.084]
[1688206423852,3.23746914,18.438,18.421,12.31893334]
[1688206424058,59.121,18.43,18.426,22.956]
[1688206425153,3.23746914,18.439,18.427,2.92770099]
[1688206425475,46.17746914,18.439,18.43,22.95]
[1688206425767,42.94,18.439,18.43,22.95]
[1688206426149,55.0,18.438,18.43,22.95]
[1688206427569,77.941,18.438,18.43,22.95]
[1688206429867,55.0,18.438,18.43,22.95]
[1688206430072,55.0,18.438,18.43,82.038]
[1688206430251,55.0,18.438,18.43,22.95]
[1688206430452,77.941,18.438,18.431,22.95]
[1688206430987,55.0,18.438,18.431,22.95]
[1688206432079,77.942,18.438,18.431,22.95]
[1688206434764,77.942,18.438,18.428,22.953]
[1688206435074,2.73746914,18.437,18.422,9.93993125]
[1688206435270,22.947,18.434,18.425,22.956]
[1688206435484,55.0,18.433,18.425,22.956]
[1688206435861,77.948,18.433,18.425,22.956]
[1688206436367,55.0,18.433,18.425,22.956]
[1688206436583,55.0,18.434,18.425,22.956]
[1688206436877,77.946,18.434,18.425,22.956]
[1688206437757,55.0,18.434,18.425,22.956]
[1688206437961,55.0,18.435,18.425,22.956]
[1688206438180,77.945,18.435,18.425,22.956]
[1688206440268,55.0,18.435,18.425,22.956]
[1688206440457,55.0,18.436,18.425,22.956]
[1688206442878,55.0,18.437,18.425,22.956]
[1688206443055,77.943,18.437,18.425,22.956]
[1688206444282,77.943,18.437,18.421,96.3968]
[1688206444466,2.73746914,18.436,18.423,82.069]
[1688206444668,22.947,18.434,18.423,82.069]
[1688206444871,55.0,18.433,18.424,9.07841337]
[1688206445166,55.0,18.433,18.426,22.955]
[1688206445866,22.947,18.434,18.426,22.955]
[1688206446066,55.0,18.433,18.426,22.955]
[1688206446667,20.0,18.439,18.426,22.955]
[1688206446857,20.0,18.439,18.427,3.04248697]
[1688206447061,22.943,18.437,18.429,22.952]
[1688206447261,55.0,18.436,18.429,22.952]
[1688206447461,22.943,18.437,18.429,22.952]
[1688206448987,55.0,18.436,18.429,22.952]
[1688206453683,22.946,18.435,18.428,22.953]
[1688206453868,77.944,18.436,18.428,22.953]
[1688206458571,55.0,18.436,18.428,22.953]
[1688206459486,77.945,18.436,18.423,7.51632296]
[1688206459873,55.0,18.436,18.423,7.51632296]
[1688206460081,55.0,18.436,18.421,96.3968]
[1688206460082,77.944,18.436,18.421,96.3968]
[1688206460289,77.944,18.436,18.423,7.89432762]
[1688206460487,27.00929506,18.437,18.424,55.0]
[1688206460695,27.00929506,18.437,18.427,22.954]
[1688206460991,20.0,18.439,18.427,22.954]
[1688206461293,20.0,18.439,18.425,59.102]
[1688206461294,22.941,18.438,18.429,22.951]
[1688206461875,77.943,18.437,18.429,22.951]
[1688206462883,55.0,18.437,18.429,22.951]
[1688206463201,77.941,18.438,18.429,22.951]
[1688206466682,22.941,18.438,18.429,22.951]
[1688206467501,22.956,18.44,18.424,55.0]
[1688206467502,22.956,18.44,18.433,22.947]
[1688206470091,22.932,18.446,18.434,9.31321554]
[1688206470294,22.932,18.446,18.437,22.942]
[1688206471291,57.772,18.446,18.437,22.942]
[1688206472003,57.772,18.446,18.433,96.2945]
[1688206472004,55.0,18.445,18.433,96.2945]
[1688206472185,22.934,18.444,18.434,26.92273691]
[1688206472508,77.936,18.443,18.434,22.945]
[1688206473788,55.0,18.443,18.434,22.945]
[1688206474112,55.0,18.443,18.434,82.02]
[1688206474484,55.0,18.443,18.434,22.945]
[1688206474889,55.0,18.443,18.434,82.02]
[1688206475094,55.0,18.444,18.434,82.02]
[1688206475703,55.0,18.445,18.438,22.941]
[1688206479302,435.86208812,18.444,18.433,9.99815311]
[1688206479505,22.941,18.438,18.433,9.99815311]
[1688206479690,9.7723221,18.437,18.433,9.99815311]
[1688206479891,55.0,18.436,18.433,9.99815311]
[1688206480086,32.96808618,18.435,18.422,22.961]
[1688206480394,34.84,18.43,18.422,22.961]
[1688206481108,69.68,18.43,18.422,22.961]
[1688206481499,92.632,18.43,18.42,95.7775]
[1688206481792,92.632,18.43,18.421,4.40739661]
[1688206481997,92.632,18.43,18.417,32.5150078]
[1688206482197,69.68,18.43,18.422,22.961]
[1688206483504,55.0,18.429,18.422,22.961]
[1688206483690,77.953,18.429,18.422,22.961]
[1688206486304,77.953,18.429,18.42,22.963]
[1688206487598,325.8,18.428,18.42,22.963]
[1688206487803,77.956,18.427,18.412,59.145]
[1688206488103,77.957,18.426,18.418,22.966]
[1688206488408,22.958,18.425,18.416,22.968]
[1688206488703,55.0,18.424,18.412,14.53503692]
[1688206488889,77.96,18.424,18.412,14.53503692]
[1688206489090,77.96,18.424,18.412,37.50803692]
[1688206493514,77.96,18.424,18.412,37.00803692]
[1688206495207,22.96,18.424,18.412,37.00803692]
[1688206496496,22.964,18.421,18.412,37.00803692]
[1688206496699,55.0,18.42,18.412,22.973]
[1688206498409,90.12,18.42,18.412,22.973]
[1688206498803,58.084,18.42,18.412,22.973]
[1688206499101,55.0,18.419,18.412,22.973]
[1688206501519,77.965,18.419,18.412,22.973]
[1688206502020,55.0,18.419,18.412,22.973]
[1688206504122,55.0,18.419,18.412,82.119]
[1688206504622,55.0,18.419,18.412,22.973]
[1688206505518,55.0,18.419,18.41,35.12]
[1688206505718,55.0,18.419,18.414,22.971]
[1688206505925,55.0,18.419,18.41,35.12]
[1688206506127,55.0,18.419,18.411,3.37122901]
[1688206506518,35.12,18.42,18.411,3.37122901]
[1688206506718,35.12,18.42,18.414,22.971]
[1688206507424,35.12,18.42,18.414,82.11]
[1688206509628,22.954,18.429,18.414,82.11]
[1688206509831,55.0,18.428,18.415,107.73401965]
[1688206510128,77.954,18.428,18.418,22.965]
[1688206510312,132.954,18.428,18.418,22.965]
[1688206510714,55.0,18.428,18.419,2.86365124]
[1688206510933,55.0,18.428,18.42,35.12]
[1688206511118,55.0,18.428,18.422,22.961]
[1688206514625,55.0,18.428,18.419,42.964]
[1688206514827,77.956,18.427,18.419,42.964]
[1688206517634,77.956,18.427,18.419,22.964]
[1688206517932,77.956,18.427,18.42,20.0]
[1688206519026,55.0,18.427,18.42,42.963]
[1688206534069,55.0,18.427,18.42,22.963]
[1688206534846,77.955,18.427,18.415,9.49037182]
[1688206535446,55.0,18.427,18.419,22.964]
[1688206535651,77.955,18.427,18.419,22.964]
[1688206540847,77.955,18.427,18.417,22.967]
[1688206542266,105.07360817,18.427,18.417,22.967]
[1688206543248,105.07360817,18.427,18.416,5.001892]
[1688206544468,105.07360817,18.427,18.416,27.970892]
[1688206544650,105.07360817,18.427,18.416,22.969]
[1688206545571,105.07360817,18.427,18.412,5.87836424]
[1688206545755,105.07360817,18.427,18.408,20.22053085]
[1688206545946,105.07360817,18.427,18.409,20.0]
[1688206546151,105.07360817,18.427,18.41,20.22053085]
[1688206546869,105.07360817,18.427,18.414,20.22053085]
[1688206547571,105.07360817,18.427,18.414,43.19153085]
[1688206547862,105.07360817,18.427,18.414,22.971]
[1688206548252,105.07360817,18.427,18.415,20.22053085]
[1688206548453,105.07360817,18.427,18.416,22.968]
[1688206548675,105.07360817,18.427,18.415,20.22053085]
[1688206548857,105.07360817,18.427,18.414,22.97]
[1688206549459,105.07360817,18.427,18.41,20.22053085]
[1688206550671,430.87360817,18.427,18.41,43.19553085]
[1688206552374,325.8,18.419,18.41,20.22053085]
[1688206552566,35.11,18.42,18.403,20.22053085]
[1688206552567,325.8,18.416,18.403,20.22053085]
[1688206552763,189.993,18.417,18.394,167.224]
[1688206552764,407.919,18.413,18.399,22.989]
[1688206553058,20.0,18.412,18.399,22.989]
[1688206553266,22.979,18.409,18.4,20.22053085]
[1688206553559,55.0,18.408,18.4,20.22053085]
[1688206553767,22.98,18.407,18.399,22.989]
[1688206554070,77.982,18.406,18.398,22.991]
[1688206554268,77.982,18.406,18.396,22.993]
[1688206554468,462.947,18.406,18.392,15.84761543]
[1688206554655,462.947,18.406,18.391,22.999]
[1688206555773,462.947,18.406,18.392,20.22053085]
[1688206556073,462.947,18.406,18.392,43.21853085]
[1688206556374,462.947,18.406,18.392,22.998]
[1688206556557,462.947,18.406,18.389,23.002]
[1688206556757,462.947,18.406,18.39,40.22053085]
[1688206556959,462.947,18.406,18.392,22.998]
[1688206557473,462.947,18.406,18.393,20.22053085]
[1688206557879,462.947,18.406,18.393,22.997]
[1688206558358,462.947,18.406,18.391,22.999]
[1688206558675,462.947,18.406,18.392,8.71580959]
[1688206559061,462.947,18.406,18.39,20.0]
[1688206559376,462.947,18.406,18.391,23.0]
[1688206559564,462.947,18.406,18.392,8.71580959]
[1688206559758,462.947,18.406,18.393,22.997]
[1688206560068,22.982,18.406,18.393,22.997]
[1688206560264,348.782,18.406,18.389,23.001]
[1688206560464,348.782,18.406,18.39,29.1164593]
[1688206560775,348.782,18.406,18.392,22.998]
[1688206560981,325.8,18.404,18.392,22.998]
[1688206561181,22.988,18.401,18.392,22.998]
[1688206561359,55.0,18.4,18.392,22.998]
[1688206561675,77.989,18.4,18.39,20.0]
[1688206561865,77.989,18.4,18.388,7.48183663]
[1688206562063,325.8,18.406,18.392,9.48059856]
[1688206562261,325.8,18.406,18.394,22.995]
[1688206562262,22.984,18.404,18.394,22.995]
[1688206563773,55.0,18.403,18.394,22.995]
[1688206564072,77.985,18.403,18.394,22.995]
[1688206564372,77.985,18.403,18.38,175.85]
[1688206564373,20.0,18.402,18.386,23.005]
[1688206564684,22.994,18.396,18.381,91.5835]
[1688206564860,22.994,18.396,18.382,6.20401929]
[1688206565059,55.0,18.395,18.382,6.20401929]
[1688206565261,22.998,18.393,18.382,29.21501929]
[1688206565579,55.0,18.392,18.382,29.21501929]
[1688206565878,20.0,18.391,18.376,23.019]
[1688206566172,22.998,18.393,18.38,35.11]
[1688206566383,22.998,18.393,18.383,23.009]
[1688206566559,91.5835,18.396,18.383,82.248]
[1688206566762,91.5835,18.396,18.384,4.05959528]
[1688206566959,91.5835,18.396,18.387,23.004]
[1688206567155,114.5775,18.396,18.387,23.004]
[1688206567371,55.0,18.395,18.387,23.004]
[1688206567578,22.997,18.394,18.38,35.11]
[1688206567790,55.0,18.393,18.383,23.009]
[1688206567956,23.0,18.392,18.383,23.009]
[1688206568281,55.0,18.391,18.383,23.009]
[1688206568480,78.0,18.391,18.383,23.009]
[1688206569359,403.8,18.391,18.379,23.014]
[1688206569561,22.999,18.392,18.382,23.01]
[1688206570889,55.0,18.391,18.382,23.01]
[1688206571677,77.999,18.392,18.382,23.01]
[1688206573275,118.78063293,18.396,18.382,131.104]
[1688206573276,91.5835,18.396,18.382,131.104]
[1688206573480,91.5835,18.396,18.383,8.47279235]
[1688206573680,22.995,18.395,18.386,23.005]
[1688206573884,59.168,18.405,18.387,20.0]
[1688206574186,22.988,18.401,18.392,22.998]
[1688206575084,22.988,18.401,18.387,59.223]
[1688206575285,22.988,18.401,18.389,5.0682561]
[1688206575482,22.988,18.401,18.39,20.0]
[1688206575983,55.0,18.4,18.39,20.0]
[1688206576188,77.99,18.4,18.391,22.999]
[1688206578583,55.0,18.4,18.391,22.999]
[1688206579272,35.11,18.405,18.391,22.999]
[1688206579479,35.11,18.405,18.392,6.84831739]
[1688206579779,35.11,18.405,18.395,22.994]
[1688206580372,58.092,18.405,18.39,35.11]
[1688206580570,58.092,18.405,18.392,22.999]
[1688206580571,22.989,18.4,18.392,22.999]
[1688206580771,55.0,18.399,18.392,22.999]
[1688206580971,35.11,18.405,18.392,22.999]
[1688206581190,35.11,18.405,18.393,6.27086814]
[1688206581376,35.11,18.405,18.396,82.189]
[1688206582483,35.11,18.405,18.396,22.993]
[1688206582794,58.093,18.405,18.396,22.993]
[1688206583575,55.0,18.404,18.396,22.993]
[1688206584985,77.984,18.404,18.396,22.993]
[1688206585503,77.984,18.404,18.394,22.995]
[1688206586494,77.984,18.404,18.386,59.229]
[1688206586798,77.984,18.404,18.387,28.98638943]
[1688206587794,77.984,18.404,18.391,22.999]
[1688206588190,326.3,18.403,18.389,23.001]
[1688206588492,22.99,18.399,18.38,35.41]
[1688206588800,82.177,18.399,18.382,59.239]
[1688206589105,55.0,18.398,18.383,8.77486429]
[1688206589302,22.995,18.395,18.387,23.005]
[1688206589599,55.0,18.394,18.387,23.005]
[1688206590100,55.0,18.395,18.387,23.005]
[1688206590785,114.181,18.395,18.387,23.005]
[1688206591998,137.176,18.395,18.387,23.005]
[1688206594586,137.176,18.395,18.385,23.006]
[1688206596800,137.176,18.395,18.385,23.007]
[1688206597606,137.176,18.395,18.383,23.01]
[1688206597905,137.176,18.395,18.38,35.41]
[1688206597906,196.376,18.395,18.381,6.52529303]
[1688206598205,196.376,18.395,18.382,23.01]
[1688206598206,137.176,18.395,18.382,23.01]
[1688206598816,137.176,18.395,18.383,6.52529303]
[1688206599104,137.176,18.395,18.385,23.007]
[1688206602607,137.176,18.395,18.38,94.656]
[1688206602804,137.176,18.395,18.381,5.68478921]
[1688206603813,137.176,18.395,18.38,23.012]
[1688206604128,23.002,18.39,18.378,23.015]
[1688206604303,23.006,18.386,18.379,20.0]
[1688206604504,55.0,18.385,18.379,20.0]
[1688206604913,78.008,18.385,18.379,20.0]
[1688206605212,78.008,18.385,18.378,23.015]
[1688206605797,137.276,18.385,18.378,23.015]
[1688206606702,137.276,18.385,18.376,23.017]
[1688206608709,137.276,18.385,18.375,23.02]
[1688206612016,137.276,18.385,18.371,95.9735]
[1688206612225,137.276,18.385,18.36,175.39]
[1688206612523,137.276,18.385,18.361,155.65737968]
[1688206612819,189.09192084,18.385,18.361,303.18537968]
[1688206613030,20.0,18.384,18.361,194.96737968]
[1688206613314,23.017,18.378,18.361,194.96737968]
[1688206613518,55.0,18.377,18.361,194.96737968]
[1688206613723,23.023,18.373,18.361,194.96737968]
[1688206613902,23.023,18.373,18.361,178.1386]
[1688206614919,78.023,18.373,18.361,178.1386]